fUSD/lending_fUSD_20260703
["ID","MTS","AMOUNT","RATE_DAILY","PERIOD"]
[426974545,1783092637000,-915.58,0.0002296,30]
[426974583,1783092638000,-500.0,0.00024999,2]
[426974582,1783092638000,-500.0,0.00024999,2]
[426974585,1783092638000,-500.0,0.00024999,2]
[426974584,1783092638000,-458.98128044,0.00024999,2]
[426974588,1783092638000,-500.0,0.00024999,2]
[426974587,1783092638000,-500.0,0.00024999,2]
[426974589,1783092638000,-156.89721311,0.00024999,2]
[426974591,1783092638000,-500.0,0.00024999,2]
[426974590,1783092638000,-500.0,0.00024999,2]
[426974581,1783092638000,-278.59734059,0.00024999,2]
[426974586,1783092638000,-500.0,0.00024999,2]
[426974595,1783092638000,-500.0,0.00024999,2]
[426974596,1783092638000,-500.0,0.00024999,2]
[426974593,1783092638000,-500.0,0.00024999,2]
[426974597,1783092638000,-500.0,0.00024999,2]
[426974600,1783092638000,-500.0,0.00024999,2]
[426974598,1783092638000,-500.0,0.00024999,2]
[426974599,1783092638000,-500.0,0.00024999,2]
[426974601,1783092638000,-500.0,0.00024999,2]
[426974603,1783092638000,-500.0,0.00024999,2]
[426974602,1783092638000,-500.0,0.00024999,2]
[426974605,1783092638000,-500.0,0.00024999,2]
[426974579,1783092638000,-648.28000092,0.00024988,2]
[426974594,1783092638000,-500.0,0.00024999,2]
[426974577,1783092638000,-183.02554591,0.00024921,2]
[426974563,1783092638000,-71.08560448,0.00024658,2]
[426974580,1783092638000,-500.0,0.00024999,2]
[426974552,1783092638000,-166.54,0.00024235,2]
[426974553,1783092638000,-446.75836508,0.00024333,2]
[426974556,1783092638000,-516.69,0.00024478,2]
[426974557,1783092638000,-33.65012765,0.00024658,2]
[426974555,1783092638000,-154.66280127,0.00024417,2]
[426974554,1783092638000,-153.94738864,0.00024397,2]
[426974558,1783092638000,-165.24987235,0.00024658,2]
[426974559,1783092638000,-474.66439555,0.00024658,2]
[426974561,1783092638000,-159.72,0.00024658,2]
[426974562,1783092638000,-88.94439552,0.00024658,2]
[426974560,1783092638000,-525.33560445,0.00024658,2]
[426974564,1783092638000,-446.75836508,0.00024667,2]
[426974604,1783092638000,-500.0,0.00024999,2]
[426974566,1783092638000,-1785.61896956,0.000249,2]
[426974565,1783092638000,-458.81103044,0.000249,2]
[426974567,1783092638000,-2470.2518,0.000249,2]
[426974569,1783092638000,-154.85108124,0.00024915,2]
[426974568,1783092638000,-2636.7444,0.000249,2]
[426974570,1783092638000,-286.72927721,0.0002492,2]
[426974571,1783092638000,-166.74038404,0.0002492,2]
[426974572,1783092638000,-179.32760676,0.0002492,2]
[426974573,1783092638000,-155.38524577,0.0002492,2]
[426974575,1783092638000,-169.14954131,0.00024921,2]
[426974574,1783092638000,-198.89811081,0.00024921,2]
[426974576,1783092638000,-188.77093823,0.00024921,2]
[426974578,1783092638000,-172.19624541,0.00024921,2]
[426974606,1783092638000,-500.0,0.00024999,2]
[426974592,1783092638000,-500.0,0.00024999,2]
[426974607,1783092638000,-500.0,0.00024999,2]
[426974652,1783092638000,-446.75836508,0.00025,2]
[426974654,1783092638000,-308.0,0.00025,2]
[426974658,1783092638000,-289.0,0.00025,2]
[426974656,1783092638000,-152.0,0.00025,2]
[426974659,1783092638000,-392.0,0.00025,2]
[426974662,1783092638000,-200.0,0.00025,2]
[426974660,1783092638000,-154.0,0.00025,2]
[426974664,1783092638000,-474.0,0.00025,2]
[426974663,1783092638000,-400.0,0.00025,2]
[426974665,1783092638000,-152.0,0.00025,2]
[426974661,1783092638000,-153.0,0.00025,2]
[426974646,1783092638000,-500.0,0.00024999,2]
[426974670,1783092638000,-36882.67,0.00025,2]
[426974667,1783092638000,-457.0,0.00025,2]
[426974668,1783092638000,-191.0,0.00025,2]
[426974676,1783092638000,-394.0,0.000251,7]
[426974671,1783092638000,-36882.67,0.00025,2]
[426974674,1783092638000,-419.01380833,0.00025046,2]
[426974673,1783092638000,-15567.33,0.00025033,2]
[426974672,1783092638000,-822.0,0.00025,2]
[426974675,1783092638000,-516.69,0.00025047,2]
[426974678,1783092638000,-11265.10585273,0.00025291,2]
[426974677,1783092638000,-4497.75,0.00025274,7]
[426974608,1783092638000,-500.0,0.00024999,2]
[426974669,1783092638000,-173.0,0.00025,2]
[426974644,1783092638000,-500.0,0.00024999,2]
[426974666,1783092638000,-153.0,0.00025,2]
[426974650,1783092638000,-237.0,0.00025,2]
[426974610,1783092638000,-500.0,0.00024999,2]
[426974642,1783092638000,-500.0,0.00024999,2]
[426974609,1783092638000,-500.0,0.00024999,2]
[426974611,1783092638000,-500.0,0.00024999,2]
[426974614,1783092638000,-500.0,0.00024999,2]
[426974612,1783092638000,-500.0,0.00024999,2]
[426974615,1783092638000,-500.0,0.00024999,2]
[426974613,1783092638000,-500.0,0.00024999,2]
[426974616,1783092638000,-500.0,0.00024999,2]
[426974619,1783092638000,-500.0,0.00024999,2]
[426974618,1783092638000,-500.0,0.00024999,2]
[426974622,1783092638000,-500.0,0.00024999,2]
[426974623,1783092638000,-500.0,0.00024999,2]
[426974617,1783092638000,-539.68759649,0.00024999,2]
[426974626,1783092638000,-500.0,0.00024999,2]
[426974640,1783092638000,-500.0,0.00024999,2]
[426974637,1783092638000,-500.0,0.00024999,2]
[426974635,1783092638000,-500.0,0.00024999,2]
[426974634,1783092638000,-500.0,0.00024999,2]
[426974632,1783092638000,-500.0,0.00024999,2]
[426974648,1783092638000,-500.0,0.00024999,2]
[426974631,1783092638000,-236.73115202,0.00024999,2]
[426974630,1783092638000,-500.0,0.00024999,2]
[426974629,1783092638000,-500.0,0.00024999,2]
[426974628,1783092638000,-500.0,0.00024999,2]
[426974633,1783092638000,-500.0,0.00024999,2]
[426974719,1783092639000,-392.0,0.00026,2]
[426974718,1783092639000,-289.0,0.00026,2]
[426974715,1783092639000,-446.75836508,0.00026,2]
[426974717,1783092639000,-160.56809108,0.00026,2]
[426974716,1783092639000,-308.0,0.00026,2]
[426974710,1783092639000,-640.08326621,0.000259,2]
[426974713,1783092639000,-224.2554676,0.00025975,2]
[426974708,1783092639000,-307.20566037,0.000259,2]
[426974711,1783092639000,-540.19838286,0.00025975,2]
[426974712,1783092639000,-186.20755132,0.00025975,2]
[426974721,1783092639000,-163.0,0.00026,2]
[426974714,1783092639000,-237.0,0.00026,2]
[426974723,1783092639000,-152.0,0.00026,2]
[426974735,1783092639000,-213.96976091,0.00026174,2]
[426974724,1783092639000,-153.0,0.00026,2]
[426974725,1783092639000,-457.0,0.00026,2]
[426974720,1783092639000,-154.0,0.00026,2]
[426974726,1783092639000,-191.0,0.00026,2]
[426974727,1783092639000,-173.0,0.00026,2]
[426974728,1783092639000,-150.0,0.0002601,5]
[426974730,1783092639000,-309.70216249,0.00026169,2]
[426974732,1783092639000,-333.48076808,0.00026174,2]
[426974736,1783092639000,-171.37662827,0.00026174,2]
[426974733,1783092639000,-358.65521353,0.00026174,2]
[426974731,1783092639000,-573.45855443,0.00026174,2]
[426974707,1783092639000,-279.31262928,0.000259,2]
[426974722,1783092639000,-474.0,0.00026,2]
[426974709,1783092639000,-4750.09696964,0.000259,2]
[426974681,1783092639000,-160.0,0.00025391,2]
[426974704,1783092639000,-11265.10585266,0.00025814,2]
[426974679,1783092639000,-446.75836508,0.00025333,2]
[426974682,1783092639000,-216.74224685,0.00025391,2]
[426974680,1783092639000,-160.0,0.00025391,2]
[426974684,1783092639000,-331.960952,0.000254,2]
[426974685,1783092639000,-279.31262928,0.000254,2]
[426974686,1783092639000,-307.20566037,0.000254,2]
[426974683,1783092639000,-241.54245187,0.00025397,2]
[426974688,1783092639000,-640.08326621,0.000254,2]
[426974687,1783092639000,-4750.09696964,0.000254,2]
[426974734,1783092639000,-217.48533655,0.00026174,2]
[426974689,1783092639000,-162.07,0.0002542,2]
[426974690,1783092639000,-150.0,0.0002542,2]
[426974706,1783092639000,-331.960952,0.000259,2]
[426974695,1783092639000,-2500.0,0.000255,2]
[426974691,1783092639000,-500.0,0.00025463,2]
[426974693,1783092639000,-1000.0,0.00025485,2]
[426974694,1783092639000,-20498.48,0.000255,2]
[426974696,1783092639000,-166.54,0.00025568,2]
[426974697,1783092639000,-331.960952,0.000256,2]
[426974698,1783092639000,-279.31262928,0.000256,2]
[426974701,1783092639000,-640.08326621,0.000256,2]
[426974699,1783092639000,-307.20566037,0.000256,2]
[426974700,1783092639000,-4750.09696964,0.000256,2]
[426974702,1783092639000,-446.75836508,0.00025667,2]
[426974705,1783092639000,-180.63309157,0.00025835,2]
[426974703,1783092639000,-5527.0,0.000257,5]
[426974692,1783092639000,-202.58,0.00025463,2]
[426974737,1783092639000,-310.77049154,0.00026174,2]
[426974789,1783092639000,-308.0,0.00027,2]
[426974741,1783092639000,-397.79622161,0.00026175,2]
[426974771,1783092639000,-540.19838286,0.00026523,2]
[426974772,1783092639000,-186.20755132,0.00026523,2]
[426974776,1783092639000,-4750.09696964,0.000267,2]
[426974775,1783092639000,-671.0,0.00026633,5]
[426974777,1783092639000,-249.0,0.0002671,2]
[426974778,1783092639000,-1022.30880559,0.00026722,2]
[426974779,1783092639000,-681.0,0.00026738,5]
[426974781,1783092639000,-540.19838286,0.00026797,2]
[426974780,1783092639000,-1852.7706008,0.00026793,2]
[426974782,1783092639000,-665.0,0.00026848,5]
[426974783,1783092639000,-11265.10585266,0.00026861,2]
[426974785,1783092639000,-166.54,0.00026901,2]
[426974774,1783092639000,-2652.13,0.00026591,2]
[426974784,1783092639000,-700.0,0.000269,9]
[426974788,1783092639000,-237.0,0.00027,2]
[426974790,1783092639000,-289.0,0.00027,2]
[426974791,1783092639000,-392.0,0.00027,2]
[426974792,1783092639000,-474.0,0.00027,2]
[426974787,1783092639000,-4750.09696964,0.00027,2]
[426974794,1783092639000,-153.0,0.00027,2]
[426974793,1783092639000,-152.0,0.00027,2]
[426974795,1783092639000,-457.0,0.00027,2]
[426974798,1783092639000,-464.55324373,0.00027005,2]
[426974797,1783092639000,-173.0,0.00027,2]
[426974799,1783092639000,-219.08349821,0.0002701,2]
[426974738,1783092639000,-180.39726483,0.00026175,2]
[426974786,1783092639000,-200.0,0.00026971,2]
[426974773,1783092639000,-672.0,0.00026545,5]
[426974796,1783092639000,-191.0,0.00027,2]
[426974770,1783092639000,-243.0,0.00026521,2]
[426974769,1783092639000,-576.03,0.00026467,2]
[426974740,1783092639000,-213.53710989,0.00026175,2]
[426974742,1783092639000,-338.29908263,0.00026175,2]
[426974744,1783092639000,-233.95888177,0.00026175,2]
[426974743,1783092639000,-218.85846497,0.00026175,2]
[426974745,1783092639000,-377.54187646,0.00026175,2]
[426974746,1783092639000,-366.05109183,0.00026175,2]
[426974750,1783092639000,-331.960952,0.000262,2]
[426974747,1783092639000,-344.39249081,0.00026175,2]
[426974748,1783092639000,-500.0,0.0002619,2]
[426974752,1783092639000,-307.20566037,0.000262,2]
[426974751,1783092639000,-279.31262928,0.000262,2]
[426974753,1783092639000,-4750.09696964,0.000262,2]
[426974739,1783092639000,-208.77513908,0.00026175,2]
[426974754,1783092639000,-640.08326621,0.000262,2]
[426974755,1783092639000,-540.19838286,0.00026249,2]
[426974765,1783092639000,-4750.09696964,0.000264,2]
[426974768,1783092639000,-574.09,0.00026453,2]
[426974764,1783092639000,-307.20566037,0.000264,2]
[426974760,1783092639000,-241.54245187,0.00026397,2]
[426974766,1783092639000,-640.08326621,0.000264,2]
[426974762,1783092639000,-279.31262928,0.000264,2]
[426974757,1783092639000,-11265.10585266,0.00026337,2]
[426974759,1783092639000,-1852.77060087,0.00026392,2]
[426974756,1783092639000,-152.0,0.00026268,5]
[426974767,1783092639000,-683.0,0.00026444,5]
[426974758,1783092639000,-157.3032084,0.00026352,2]
[426974761,1783092639000,-331.960952,0.000264,2]
[426974837,1783092640000,-150.0,0.00027074,7]
[426974829,1783092640000,-166.41,0.00027051,2]
[426974826,1783092640000,-549.07663774,0.00027011,2]
[426974832,1783092640000,-155.33984408,0.00027074,7]
[426974831,1783092640000,-186.20755132,0.00027071,2]
[426974833,1783092640000,-150.0,0.00027074,7]
[426974835,1783092640000,-150.0,0.00027074,7]
[426974834,1783092640000,-260.03445119,0.00027074,7]
[426974836,1783092640000,-150.0,0.00027074,7]
[426974828,1783092640000,-190.0,0.0002705,5]
[426974830,1783092640000,-540.19838286,0.00027071,2]
[426974844,1783092640000,-775.52136649,0.00027123,2]
[426974840,1783092640000,-150.0,0.00027074,7]
[426974839,1783092640000,-150.0,0.00027074,7]
[426974841,1783092640000,-167.35133042,0.00027074,7]
[426974842,1783092640000,-150.0,0.00027074,7]
[426974843,1783092640000,-150.0,0.00027074,7]
[426974845,1783092640000,-616.0,0.00027123,2]
[426974846,1783092640000,-154.0,0.00027123,2]
[426974847,1783092640000,-502.0,0.00027137,2]
[426974827,1783092640000,-516.58873622,0.00027011,2]
[426974848,1783092640000,-1852.7706008,0.00027194,2]
[426974838,1783092640000,-150.0,0.00027074,7]
[426974825,1783092640000,-566.31281468,0.00027011,2]
[426974807,1783092640000,-434.97067311,0.0002701,2]
[426974822,1783092640000,-286.74219052,0.00027011,2]
[426974849,1783092640000,-4750.09696964,0.000272,2]
[426974800,1783092640000,-227.49439561,0.0002701,2]
[426974802,1783092640000,-500.22115212,0.0002701,2]
[426974801,1783092640000,-860.18783164,0.0002701,2]
[426974803,1783092640000,-537.98282029,0.0002701,2]
[426974804,1783092640000,-150.00206636,0.0002701,2]
[426974805,1783092640000,-163.12159787,0.0002701,2]
[426974806,1783092640000,-202.25761315,0.0002701,2]
[426974810,1783092640000,-342.75325655,0.0002701,2]
[426974808,1783092640000,-427.93952182,0.0002701,2]
[426974809,1783092640000,-225.29587877,0.0002701,2]
[426974811,1783092640000,-466.15573731,0.0002701,2]
[426974812,1783092640000,-360.79452965,0.00027011,2]
[426974816,1783092640000,-240.370863,0.00027011,2]
[426974815,1783092640000,-206.25774376,0.00027011,2]
[426974817,1783092640000,-417.55027815,0.00027011,2]
[426974818,1783092640000,-213.2305912,0.00027011,2]
[426974813,1783092640000,-225.89041913,0.00027011,2]
[426974814,1783092640000,-242.24187771,0.00027011,2]
[426974820,1783092640000,-596.69433242,0.00027011,2]
[426974819,1783092640000,-427.07421977,0.00027011,2]
[426974821,1783092640000,-507.44862394,0.00027011,2]
[426974823,1783092640000,-437.71692994,0.00027011,2]
[426974824,1783092640000,-467.91776355,0.00027011,2]
[426974850,1783092640000,-12641.11833562,0.0002726,7]
[426974852,1783092640000,-151.0,0.00027275,2]
[426974903,1783092640000,-500.0,0.00027379,2]
[426974894,1783092640000,-1217.0,0.00027351,2]
[426974895,1783092640000,-200.0,0.00027356,2]
[426974897,1783092640000,-151.0,0.00027377,7]
[426974898,1783092640000,-344.86487342,0.00027379,2]
[426974899,1783092640000,-1082.6663738,0.00027379,10]
[426974900,1783092640000,-500.0,0.00027379,2]
[426974904,1783092640000,-500.0,0.00027379,2]
[426974902,1783092640000,-500.0,0.00027379,2]
[426974905,1783092640000,-506.93851576,0.00027379,2]
[426974901,1783092640000,-500.0,0.00027379,2]
[426974906,1783092640000,-500.0,0.00027379,2]
[426974911,1783092640000,-405.241704,0.00027379,2]
[426974910,1783092640000,-500.0,0.00027379,2]
[426974909,1783092640000,-403.6837646,0.00027379,2]
[426974908,1783092640000,-500.0,0.00027379,2]
[426974907,1783092640000,-442.63273246,0.00027379,2]
[426974912,1783092640000,-500.0,0.00027379,2]
[426974914,1783092640000,-500.0,0.00027379,2]
[426974916,1783092640000,-152193.9498392,0.0002738,2]
[426974915,1783092640000,-502.4845754,0.00027379,2]
[426974913,1783092640000,-499.21607131,0.00027379,2]
[426974917,1783092640000,-220793.5195128,0.0002738,2]
[426974851,1783092640000,-151.0,0.00027275,2]
[426974893,1783092640000,-1231.0,0.00027351,2]
[426974891,1783092640000,-1363.0,0.00027351,2]
[426974896,1783092640000,-500.0,0.00027373,2]
[426974887,1783092640000,-190.73,0.00027329,16]
[426974853,1783092640000,-151.0,0.00027275,2]
[426974855,1783092640000,-151.0,0.00027275,2]
[426974854,1783092640000,-151.0,0.00027275,2]
[426974859,1783092640000,-500.0,0.00027279,2]
[426974857,1783092640000,-482.78,0.00027278,2]
[426974863,1783092640000,-151.0,0.00027279,2]
[426974861,1783092640000,-151.23,0.00027279,2]
[426974892,1783092640000,-1279.0,0.00027351,2]
[426974875,1783092640000,-1723.82853464,0.0002728,2]
[426974867,1783092640000,-151.21,0.00027279,2]
[426974877,1783092640000,-151.0,0.0002728,2]
[426974871,1783092640000,-33366.7554,0.0002728,2]
[426974873,1783092640000,-2000.0,0.0002728,2]
[426974865,1783092640000,-236.2,0.00027279,2]
[426974869,1783092640000,-151.0,0.00027279,2]
[426974879,1783092640000,-151.0,0.00027281,2]
[426974881,1783092640000,-151.0,0.00027281,2]
[426974884,1783092640000,-157.172891,0.00027291,2]
[426974885,1783092640000,-150.0,0.00027305,7]
[426974883,1783092640000,-151.0,0.00027282,2]
[426974882,1783092640000,-151.66,0.00027282,2]
[426974886,1783092640000,-5320.459,0.00027329,16]
[426974889,1783092640000,-157.172891,0.00027346,2]
[426974888,1783092640000,-540.19838286,0.00027345,2]
[426974890,1783092640000,-421.4169972,0.0002735,2]
[426974961,1783092641000,-370.59739698,0.00027558,2]
[426974958,1783092641000,-401.17212832,0.00027558,2]
[426974960,1783092641000,-318.5597691,0.00027558,2]
[426974957,1783092641000,-500.0,0.0002754,90]
[426974956,1783092641000,-500.0,0.0002754,90]
[426974953,1783092641000,-1824.19802192,0.00027529,2]
[426974955,1783092641000,-500.0,0.0002754,90]
[426974952,1783092641000,-500.0,0.000275,7]
[426974951,1783092641000,-4750.09696964,0.000275,2]
[426974949,1783092641000,-1824.19802192,0.00027493,2]
[426974962,1783092641000,-362.67805694,0.00027558,2]
[426974954,1783092641000,-150.0,0.00027537,7]
[426974959,1783092641000,-443.13435936,0.00027558,2]
[426974977,1783092641000,-224.18442476,0.00027562,2]
[426974967,1783092641000,-383.73840924,0.00027558,2]
[426974965,1783092641000,-378.98213007,0.00027558,2]
[426974964,1783092641000,-419.59505865,0.00027558,2]
[426974966,1783092641000,-340.11317397,0.00027558,2]
[426974968,1783092641000,-225.04027829,0.00027558,2]
[426974972,1783092641000,-383.7303445,0.00027562,2]
[426974969,1783092641000,-189.60919054,0.00027562,2]
[426974973,1783092641000,-336.26381736,0.00027562,2]
[426974970,1783092641000,-190.84963966,0.00027562,2]
[426974971,1783092641000,-153.69655744,0.00027562,2]
[426974974,1783092641000,-153.51031089,0.00027562,2]
[426974976,1783092641000,-248.93703023,0.00027562,2]
[426974947,1783092641000,-28496.50007049,0.00027456,2]
[426974963,1783092641000,-365.13539238,0.00027558,2]
[426974950,1783092641000,-668.0,0.000275,5]
[426974923,1783092641000,-1000.0,0.00027397,2]
[426974948,1783092641000,-1824.19802192,0.00027458,2]
[426974918,1783092641000,-4816.5774801,0.0002738,2]
[426974919,1783092641000,-11265.10585266,0.00027384,2]
[426974922,1783092641000,-1000.0,0.00027397,2]
[426974924,1783092641000,-1500.0,0.00027397,2]
[426974921,1783092641000,-1000.0,0.00027397,2]
[426974920,1783092641000,-161.02830125,0.00027397,7]
[426974925,1783092641000,-160.0,0.00027397,10]
[426974930,1783092641000,-2000.0,0.00027399,10]
[426974929,1783092641000,-2000.0,0.00027399,7]
[426974927,1783092641000,-161.02830125,0.00027397,7]
[426974928,1783092641000,-2000.0,0.00027399,2]
[426974926,1783092641000,-282.95732766,0.00027397,2]
[426974931,1783092641000,-1809.0,0.000274,2]
[426974932,1783092641000,-200.0,0.000274,2]
[426974934,1783092641000,-157.172891,0.000274,2]
[426974937,1783092641000,-1824.19802192,0.000274,2]
[426974935,1783092641000,-1824.19802198,0.000274,2]
[426974936,1783092641000,-1824.19802192,0.000274,2]
[426974933,1783092641000,-200.0,0.000274,2]
[426974939,1783092641000,-236.87,0.000274,2]
[426974938,1783092641000,-1824.19802192,0.000274,2]
[426974940,1783092641000,-236.87,0.000274,2]
[426974945,1783092641000,-683.0,0.00027446,5]
[426974942,1783092641000,-236.87,0.000274,2]
[426974941,1783092641000,-236.87,0.000274,2]
[426974943,1783092641000,-236.87,0.000274,2]
[426974944,1783092641000,-1824.19802192,0.00027422,2]
[426974946,1783092641000,-500.0,0.00027455,2]
[426974979,1783092641000,-188.70387969,0.00027562,2]
[426974975,1783092641000,-188.27313755,0.00027562,2]
[426974978,1783092641000,-187.36942356,0.00027562,2]
[426975010,1783092641000,-656.57539491,0.00027568,2]
[426975013,1783092641000,-732.10218365,0.00027568,2]
[426975014,1783092641000,-688.78498163,0.00027568,2]
[426975020,1783092641000,-2124.61450473,0.00027631,7]
[426975019,1783092641000,-186.20755132,0.00027619,2]
[426975015,1783092641000,-1852.7706008,0.00027595,2]
[426975016,1783092641000,-1824.19802192,0.000276,2]
[426975017,1783092641000,-3654.0,0.00027603,5]
[426975021,1783092641000,-200.0,0.00027674,2]
[426975018,1783092641000,-540.19838286,0.00027619,2]
[426975022,1783092641000,-153.9473886,0.00027681,2]
[426975023,1783092641000,-317.0,0.000277,2]
[426975025,1783092641000,-150.0,0.00027768,7]
[426975011,1783092641000,-701.87664532,0.00027568,2]
[426975026,1783092641000,-4750.09696964,0.000278,2]
[426975027,1783092641000,-150.0,0.00027826,7]
[426975028,1783092641000,-540.19838286,0.00027893,2]
[426975029,1783092641000,-4964.5952,0.00027899,2]
[426975030,1783092641000,-496.54931873,0.000279,2]
[426975032,1783092641000,-11265.10585266,0.00027907,2]
[426975033,1783092641000,-504.35830633,0.00027917,7]
[426975031,1783092641000,-1400.0,0.000279,10]
[426975034,1783092641000,-186.16875118,0.0002792,14]
[426975035,1783092641000,-278.49731775,0.0002792,14]
[426975039,1783092641000,-504.35830633,0.00027975,7]
[426974981,1783092641000,-204.27486247,0.00027562,2]
[426975040,1783092641000,-1723.82853462,0.0002799,2]
[426975037,1783092641000,-200.0,0.00027951,2]
[426975024,1783092641000,-200.0,0.00027741,2]
[426975012,1783092641000,-755.08375291,0.00027568,2]
[426975036,1783092641000,-376.8138,0.0002792,14]
[426975009,1783092641000,-676.59816525,0.00027568,2]
[426975008,1783092641000,-573.48438104,0.00027568,2]
[426974980,1783092641000,-158.1664,0.00027562,2]
[426975038,1783092641000,-1002.72336454,0.0002797,2]
[426974982,1783092641000,-200.14913514,0.00027562,2]
[426974986,1783092641000,-326.24319575,0.00027563,2]
[426974984,1783092641000,-619.40432497,0.00027562,2]
[426974983,1783092641000,-152.66265455,0.00027562,2]
[426974987,1783092641000,-1824.19802192,0.00027564,2]
[426974989,1783092641000,-438.16699643,0.00027568,2]
[426974990,1783092641000,-454.98879122,0.00027568,2]
[426974994,1783092641000,-404.5152263,0.00027568,2]
[426974992,1783092641000,-666.96153616,0.00027568,2]
[426974988,1783092641000,-565.91465531,0.00027565,2]
[426974993,1783092641000,-717.31042705,0.00027568,2]
[426974985,1783092641000,-300.00413273,0.00027563,2]
[426974995,1783092641000,-652.45600966,0.00027568,2]
[426974991,1783092641000,-1146.91710885,0.00027568,2]
[426975004,1783092641000,-626.32541723,0.00027568,2]
[426975006,1783092641000,-640.61132966,0.00027568,2]
[426975002,1783092641000,-484.48375543,0.00027568,2]
[426975003,1783092641000,-412.51548753,0.00027568,2]
[426975005,1783092641000,-426.46118239,0.00027568,2]
[426974999,1783092641000,-621.54098308,0.00027568,2]
[426974997,1783092641000,-450.59175754,0.00027568,2]
[426975001,1783092641000,-451.78083826,0.00027568,2]
[426975007,1783092641000,-795.59244322,0.00027568,2]
[426975000,1783092641000,-541.19179448,0.00027568,2]
[426974996,1783092641000,-641.90928273,0.00027568,2]
[426974998,1783092641000,-514.12988482,0.00027568,2]
[426975072,1783092642000,-1000.0,0.00028096,2]
[426975081,1783092642000,-570.98,0.00028096,2]
[426975074,1783092642000,-151.0,0.00028096,2]
[426975071,1783092642000,-150.0,0.00028077,7]
[426975075,1783092642000,-152.14,0.00028096,2]
[426975079,1783092642000,-151.15,0.00028096,2]
[426975077,1783092642000,-574.12,0.00028096,2]
[426975078,1783092642000,-484.1,0.00028096,2]
[426975076,1783092642000,-574.09,0.00028096,2]
[426975080,1783092642000,-151.0,0.00028096,2]
[426975073,1783092642000,-482.78,0.00028096,2]
[426975090,1783092642000,-151.0,0.00028101,2]
[426975084,1783092642000,-482.78,0.00028096,2]
[426975082,1783092642000,-151.0,0.00028096,2]
[426975085,1783092642000,-151.0,0.00028101,2]
[426975088,1783092642000,-151.0,0.00028101,2]
[426975086,1783092642000,-151.0,0.00028101,2]
[426975091,1783092642000,-151.0,0.00028101,2]
[426975087,1783092642000,-151.0,0.00028101,2]
[426975089,1783092642000,-151.0,0.00028101,2]
[426975092,1783092642000,-151.0,0.00028101,2]
[426975095,1783092642000,-151.0,0.00028102,2]
[426975093,1783092642000,-151.0,0.00028101,2]
[426975070,1783092642000,-150.0,0.00028077,7]
[426975083,1783092642000,-151.0,0.00028096,2]
[426975069,1783092642000,-150.0,0.00028077,7]
[426975055,1783092642000,-392.0,0.00028,2]
[426975065,1783092642000,-166.48,0.00028033,2]
[426975044,1783092642000,-150.0,0.00028,7]
[426975043,1783092642000,-500.0,0.00027999,7]
[426975045,1783092642000,-10171.30666664,0.00028,5]
[426975041,1783092642000,-1852.7706008,0.00027996,2]
[426975042,1783092642000,-500.0,0.00027999,7]
[426975046,1783092642000,-42000.0,0.00028,2]
[426975047,1783092642000,-221.09401685,0.00028,2]
[426975050,1783092642000,-22500.0,0.00028,2]
[426975049,1783092642000,-643.0,0.00028,2]
[426975048,1783092642000,-160.0,0.00028,2]
[426975051,1783092642000,-325.59837688,0.00028,2]
[426975052,1783092642000,-237.0,0.00028,2]
[426975054,1783092642000,-289.0,0.00028,2]
[426975053,1783092642000,-308.0,0.00028,2]
[426975056,1783092642000,-474.0,0.00028,2]